fUST/lending_fUST_20250805
["ID","MTS","AMOUNT","RATE_DAILY","PERIOD"]
[377426794,1754409040422,-500.0,0.00026972,2]
[377426795,1754409040432,-500.0,0.00026972,2]
[377426796,1754409040443,-500.0,0.00026972,2]
[377426797,1754409040452,-500.0,0.00026972,2]
[377426798,1754409040462,-500.0,0.00026972,2]
[377426799,1754409040472,-500.0,0.00026972,2]
[377426800,1754409040481,-300.0,0.00026972,2]
[377426801,1754409040491,-221.71243942,0.00026972,2]
[377426802,1754409040500,-1200.0,0.00026972,2]
[377426803,1754409040509,-500.0,0.00026973,2]
[377426804,1754409040519,-500.0,0.00026973,2]
[377426805,1754409040529,-41779.06703379,0.00026973,2]
[377426806,1754409040539,-396.95393897,0.00026973,2]
[377426807,1754409040549,-500.0,0.00026973,2]
[377426808,1754409040560,-500.0,0.00026973,2]
[377426810,1754409040569,-500.0,0.00026973,2]
[377426812,1754409040579,-500.0,0.00026973,2]
[377426814,1754409040588,-500.0,0.00026973,2]
[377426816,1754409040598,-500.0,0.00026973,2]
[377426818,1754409040608,-503.37262385,0.00026973,2]
[377426820,1754409040618,-199.72,0.00026973,15]
[377426823,1754409040627,-500.0,0.00026976,2]
[377426835,1754409040720,-359.91391166,0.00026976,2]
[377426837,1754409040730,-821.11,0.00026979,3]
[377426839,1754409040740,-410.56,0.00026979,3]
[377426841,1754409040750,-205.28,0.00026979,3]
[377426844,1754409040759,-171.07,0.00026979,3]
[377426846,1754409040769,-513.21,0.00026979,3]
[377426847,1754409040778,-1642.22,0.0002698,3]
[377426849,1754409040787,-103084.123093,0.0002698,2]
[377426852,1754409040797,-3950.31523166,0.0002698,2]
[377426853,1754409040807,-200.0,0.00026989,10]
[377426856,1754409040818,-200.0,0.00026989,10]
[377426857,1754409040827,-200.0,0.00026989,10]
[377426860,1754409040837,-200.0,0.00026989,10]
[377426862,1754409040850,-200.0,0.00026989,10]
[377426864,1754409040860,-200.0,0.00026989,10]
[377426866,1754409040870,-200.0,0.00026989,10]
[377426868,1754409040879,-200.0,0.00026989,10]
[377426870,1754409040888,-200.0,0.00026989,10]
[377426871,1754409040897,-200.0,0.00026989,10]
[377426873,1754409040907,-200.0,0.00026989,10]
[377426875,1754409040917,-200.0,0.00026989,10]
[377426877,1754409040927,-205.368343,0.00026989,10]
[377426880,1754409040936,-70412.29266543,0.0002699,2]
[377426882,1754409040947,-3554.62512837,0.00027054,2]
[377426884,1754409040957,-1000.0,0.00027123,2]
[377426886,1754409040967,-269.89,0.00027123,2]
[377426888,1754409040977,-3554.62512837,0.00027227,2]
[377426890,1754409040990,-500.0,0.00027245,2]
[377426892,1754409041000,-23528.48505614,0.00027273,2]
[377426894,1754409041010,-51542.0615465,0.00027365,2]
[377426896,1754409041020,-1975.15761583,0.00027365,2]
[377426898,1754409041030,-502.51700211,0.00027373,2]
[377426900,1754409041040,-500.0,0.00027373,2]
[377426902,1754409041050,-500.01772604,0.00027373,2]
[377426904,1754409041062,-500.0,0.00027373,2]
[377426906,1754409041071,-500.0,0.00027373,2]
[377426908,1754409041081,-500.0,0.00027373,2]
[377426910,1754409041090,-500.0,0.00027373,2]
[377426912,1754409041100,-500.0,0.00027373,2]
[377426914,1754409041109,-500.0,0.00027373,2]
[377426916,1754409041118,-504.49301008,0.00027373,2]
[377426918,1754409041127,-500.65338569,0.00027373,2]
[377426920,1754409041137,-500.0,0.00027373,2]
[377426922,1754409041149,-500.0,0.00027373,2]
[377426924,1754409041158,-173.32559241,0.00027373,2]
[377426926,1754409041167,-500.0,0.00027373,2]
[377426928,1754409041177,-500.0,0.00027373,2]
[377426930,1754409041187,-502.16247731,0.00027373,2]
[377426932,1754409041196,-500.0,0.00027373,2]
[377426934,1754409041205,-500.0,0.00027373,2]
[377426936,1754409041214,-500.0,0.00027373,2]
[377426938,1754409041224,-500.0,0.00027373,2]
[377426939,1754409041233,-500.0,0.00027373,2]
[377426941,1754409041242,-500.0,0.00027373,2]
[377426943,1754409041251,-500.0,0.00027373,2]
[377426946,1754409041262,-500.0,0.00027373,2]
[377426948,1754409041271,-520.68218373,0.00027373,2]
[377426950,1754409041280,-500.0,0.00027373,2]
[377426952,1754409041290,-500.0,0.00027373,2]
[377426954,1754409041299,-503.0538355,0.00027373,2]
[377426956,1754409041310,-500.0,0.00027373,2]
[377426958,1754409041320,-500.0,0.00027373,2]
[377426960,1754409041329,-500.0,0.00027373,2]
[377426962,1754409041339,-444.55153686,0.00027373,2]
[377426964,1754409041353,-500.0,0.00027373,2]
[377426966,1754409041362,-500.0,0.00027373,2]
[377426968,1754409041372,-500.0,0.00027373,2]
[377426970,1754409041382,-500.0,0.00027373,2]
[377426972,1754409041392,-500.0,0.00027373,2]
[377426974,1754409041401,-504.20056297,0.00027373,2]
[377426976,1754409041411,-500.0,0.00027373,2]
[377426978,1754409041424,-512.9978651,0.00027373,2]
[377426980,1754409041434,-500.0,0.00027373,2]
[377426982,1754409041443,-500.0,0.00027373,2]
[377426984,1754409041453,-500.0,0.00027373,2]
[377426986,1754409041462,-51542.0615465,0.00027377,2]
[377426988,1754409041472,-1975.15761583,0.00027377,2]
[377426990,1754409041482,-51542.0615465,0.00027387,2]
[377426992,1754409041491,-7900.63046332,0.00027387,2]
[377426994,1754409041500,-151.0,0.00027387,7]
[377426996,1754409041510,-462.42669878,0.00027397,2]
[377426998,1754409041520,-460.0,0.00027397,2]
[377427000,1754409041529,-460.89890864,0.00027397,2]
[377427002,1754409041538,-460.3997576,0.00027397,2]
[377427004,1754409041548,-460.0,0.00027397,2]
[377427006,1754409041558,-464.41838122,0.00027397,2]
[377427008,1754409041569,-394.81853035,0.00027397,2]
[377427010,1754409041579,-463.23427336,0.00027397,2]
[377427012,1754409041589,-460.0,0.00027397,2]
[377427014,1754409041598,-460.0,0.00027397,2]
[377427016,1754409041607,-460.0,0.00027397,2]
[377427018,1754409041617,-460.0,0.00027397,2]
[377427020,1754409041626,-460.0,0.00027397,2]
[377427022,1754409041636,-460.0,0.00027397,2]
[377427024,1754409041645,-460.0,0.00027397,2]
[377427026,1754409041656,-460.0,0.00027397,2]
[377427028,1754409041666,-460.0,0.00027397,2]
[377427030,1754409041675,-460.0,0.00027397,2]
[377427032,1754409041684,-460.0,0.00027397,2]
[377427034,1754409041694,-460.0,0.00027397,2]
[377427036,1754409041704,-460.0,0.00027397,2]
[377427038,1754409041713,-460.0,0.00027397,2]
[377427040,1754409041723,-460.0,0.00027397,2]
[377427042,1754409041732,-460.0,0.00027397,2]
[377427044,1754409041742,-460.0,0.00027397,2]
[377427046,1754409041751,-460.0,0.00027397,2]
[377427048,1754409041761,-460.0,0.00027397,2]
[377427050,1754409041771,-460.0,0.00027397,2]
[377427052,1754409041780,-460.0,0.00027397,2]
[377427054,1754409041790,-460.0,0.00027397,2]
[377427056,1754409041799,-460.0,0.00027397,2]
[377427058,1754409041809,-460.0,0.00027397,2]
[377427060,1754409041820,-460.0,0.00027397,2]
[377427062,1754409041829,-845.72,0.00027397,2]
[377427064,1754409041839,-460.0,0.00027397,2]
[377427066,1754409041848,-460.0,0.00027397,2]
[377427068,1754409041857,-460.61825304,0.00027397,2]
[377427070,1754409041866,-619.42,0.00027397,2]
[377427072,1754409041876,-460.0,0.00027397,2]
[377427074,1754409041886,-460.0,0.00027397,2]
[377427076,1754409041895,-492.57397995,0.00027397,2]
[377427078,1754409041905,-460.0,0.00027397,2]
[377427080,1754409041915,-462.14289457,0.00027397,2]
[377427082,1754409041925,-462.81602708,0.00027397,2]
[377427085,1754409041935,-460.0,0.00027397,2]
[377427087,1754409041945,-460.0,0.00027397,2]
[377427089,1754409041955,-460.0,0.00027397,2]
[377427091,1754409041965,-462.05179579,0.00027397,2]
[377427093,1754409041974,-460.0,0.00027397,2]
[377427095,1754409041985,-460.0,0.00027397,2]
[377427097,1754409041994,-460.0,0.00027397,2]
[377427099,1754409042004,-500.0,0.00027397,2]
[377427101,1754409042013,-460.0,0.00027397,2]
[377427103,1754409042023,-460.0,0.00027397,2]
[377427105,1754409042032,-460.0,0.00027397,2]
[377427107,1754409042044,-500.0,0.00027397,2]
[377427108,1754409042056,-799.22,0.00027397,2]
[377427110,1754409042067,-506.26,0.00027397,2]
[377427112,1754409042077,-460.0,0.00027397,2]
[377427114,1754409042087,-460.0,0.00027397,2]
[377427117,1754409042098,-598.01864906,0.00027397,2]
[377427118,1754409042108,-460.0,0.00027397,2]
[377427121,1754409042117,-460.0,0.00027397,2]
[377427122,1754409042127,-911.51,0.00027397,2]
[377427125,1754409042136,-460.0,0.00027397,2]
[377427126,1754409042145,-460.0,0.00027397,2]
[377427128,1754409042154,-460.0,0.00027397,2]
[377427131,1754409042166,-557.39,0.00027397,2]
[377427133,1754409042175,-460.0,0.00027397,2]
[377427135,1754409042185,-469.12314799,0.00027397,2]
[377427136,1754409042194,-463.00321986,0.00027397,2]
[377427138,1754409042204,-460.0,0.00027397,2]
[377427140,1754409042213,-756.93,0.00027397,2]
[377427142,1754409042222,-460.0,0.00027397,2]
[377427144,1754409042231,-460.0,0.00027397,2]
[377427146,1754409042240,-1414.05,0.00027397,2]
[377427148,1754409042249,-460.0,0.00027397,2]
[377427150,1754409042258,-460.0,0.00027397,2]
[377427152,1754409042268,-460.0,0.00027397,2]
[377427154,1754409042277,-463.81998171,0.00027397,2]
[377427156,1754409042286,-460.0,0.00027397,2]
[377427158,1754409042295,-460.0,0.00027397,2]
[377427160,1754409042304,-460.0,0.00027397,2]
[377427162,1754409042316,-460.0,0.00027397,2]
[377427164,1754409042326,-460.0,0.00027397,2]
[377427166,1754409042336,-460.0,0.00027397,2]
[377427168,1754409042347,-463.48542873,0.00027397,2]
[377427170,1754409042357,-460.0,0.00027397,2]
[377427172,1754409042366,-335.86449453,0.00027397,2]
[377427174,1754409042375,-500.0,0.00027397,2]
[377427184,1754409042463,-500.0,0.00027397,2]
[377427186,1754409042473,-500.0,0.00027397,2]
[377427188,1754409042483,-500.0,0.00027397,2]
[377427190,1754409042492,-500.0,0.00027397,2]
[377427192,1754409042502,-460.0,0.00027397,2]
[377427194,1754409042512,-460.0,0.00027397,2]
[377427196,1754409042522,-470.99780241,0.00027397,2]
[377427198,1754409042531,-462.73934036,0.00027397,2]
[377427200,1754409042541,-3511.45,0.00027397,2]
[377427202,1754409042550,-460.93835263,0.00027397,2]
[377427204,1754409042559,-460.0,0.00027397,2]
[377427206,1754409042573,-460.0,0.00027397,2]
[377427208,1754409042582,-174.11588704,0.00027397,2]
[377427210,1754409042592,-382.28163572,0.00027397,2]
[377427212,1754409042602,-353.08797797,0.00027397,2]
[377427214,1754409042612,-654.72,0.00027397,2]
[377427216,1754409042622,-545.27731332,0.00027397,2]
[377427218,1754409042631,-460.0,0.00027397,2]
[377427220,1754409042641,-673.35,0.00027397,2]
[377427222,1754409042650,-1248.88,0.00027397,2]
[377427224,1754409042659,-1248.88,0.00027397,2]
[377427226,1754409042669,-1248.88,0.00027397,2]
[377427228,1754409042679,-460.0,0.00027397,2]
[377427230,1754409042688,-1248.88,0.00027397,2]
[377427233,1754409042698,-1248.88,0.00027397,2]
[377427235,1754409042708,-1248.88,0.00027397,2]
[377427237,1754409042717,-1248.88,0.00027397,2]
[377427238,1754409042726,-1248.88,0.00027397,2]
[377427241,1754409042736,-1248.88,0.00027397,2]
[377427242,1754409042745,-1248.88,0.00027397,2]
[377427244,1754409042754,-2081.36,0.00027397,2]
[377427246,1754409042764,-1175.62,0.00027397,2]
[377427248,1754409042774,-1248.88,0.00027397,2]
[377427250,1754409042783,-460.0,0.00027397,2]
[377427252,1754409042792,-460.0,0.00027397,2]
[377427254,1754409042802,-460.0,0.00027397,2]
[377427256,1754409042814,-1248.88,0.00027397,2]
[377427258,1754409042824,-460.0,0.00027397,2]
[377427260,1754409042834,-1248.88,0.00027397,2]
[377427263,1754409042843,-1248.88,0.00027397,2]
[377427264,1754409042854,-1248.88,0.00027397,2]
[377427267,1754409042863,-460.0,0.00027397,2]
[377427269,1754409042874,-1689.44,0.00027397,2]
[377427271,1754409042884,-460.0,0.00027397,2]
[377427272,1754409042894,-460.0,0.00027397,2]
[377427274,1754409042904,-460.0,0.00027397,2]
[377427276,1754409042914,-460.0,0.00027397,2]
[377427278,1754409042923,-460.0,0.00027397,2]
[377427280,1754409042932,-460.0,0.00027397,2]
[377427283,1754409042942,-460.0,0.00027397,2]
[377427285,1754409042951,-1728.56,0.00027397,2]
[377427287,1754409042961,-460.65091598,0.00027397,2]
[377427289,1754409042971,-697.8,0.00027397,2]
[377427292,1754409042981,-460.0,0.00027397,2]
[377427295,1754409042992,-460.0,0.00027397,2]
[377427298,1754409043002,-460.0,0.00027397,2]
[377427301,1754409043012,-982.92,0.00027397,2]
[377427303,1754409043022,-460.0,0.00027397,2]
[377427305,1754409043031,-460.0,0.00027397,2]
[377427307,1754409043041,-460.0,0.00027397,2]
[377427309,1754409043051,-1169.66,0.00027397,2]
[377427311,1754409043060,-708.67,0.00027397,2]
[377427313,1754409043070,-460.0,0.00027397,2]
[377427315,1754409043079,-460.0,0.00027397,2]
[377427317,1754409043089,-461.54367961,0.00027397,2]
[377427319,1754409043098,-839.68,0.00027397,2]
[377427321,1754409043107,-460.0,0.00027397,2]
[377427323,1754409043116,-460.0,0.00027397,2]
[377427325,1754409043125,-460.0,0.00027397,2]
[377427327,1754409043135,-570.44,0.00027397,2]
[377427329,1754409043145,-460.0,0.00027397,2]
[377427331,1754409043154,-514.96949303,0.00027397,2]
[377427333,1754409043163,-460.0,0.00027397,2]
[377427335,1754409043172,-460.0,0.00027397,2]
[377427337,1754409043182,-460.0,0.00027397,2]
[377427339,1754409043191,-462.88304711,0.00027397,2]
[377427341,1754409043200,-961.19,0.00027397,2]
[377427343,1754409043209,-460.0,0.00027397,2]
[377427345,1754409043219,-460.0,0.00027397,2]
[377427347,1754409043228,-467.92925473,0.00027397,2]
[377427349,1754409043237,-460.0,0.00027397,2]
[377427351,1754409043247,-460.8460123,0.00027397,2]
[377427353,1754409043256,-460.0,0.00027397,2]
[377427355,1754409043266,-460.0,0.00027397,2]
[377427357,1754409043275,-460.0,0.00027397,2]
[377427359,1754409043285,-460.0,0.00027397,2]
[377427361,1754409043294,-460.0,0.00027397,2]
[377427363,1754409043303,-460.0,0.00027397,2]
[377427365,1754409043315,-471.73,0.00027397,2]
[377427367,1754409043324,-460.0,0.00027397,2]
[377427369,1754409043334,-460.0,0.00027397,2]
[377427371,1754409043347,-460.0,0.00027397,2]
[377427373,1754409043356,-460.0,0.00027397,2]
[377427375,1754409043365,-2396.86,0.00027397,2]
[377427377,1754409043375,-461.76114485,0.00027397,2]
[377427379,1754409043385,-460.0,0.00027397,2]
[377427381,1754409043395,-460.0,0.00027397,2]
[377427383,1754409043404,-789.91,0.00027397,2]
[377427385,1754409043414,-460.0,0.00027397,2]
[377427387,1754409043427,-460.0,0.00027397,2]
[377427389,1754409043437,-871.01,0.00027397,2]
[377427391,1754409043446,-460.0,0.00027397,2]
[377427393,1754409043456,-460.0,0.00027397,2]
[377427395,1754409043466,-460.0,0.00027397,2]
[377427397,1754409043476,-430.77390244,0.00027397,2]
[377427399,1754409043485,-152.92125324,0.00027397,2]
[377427401,1754409043494,-461.56625529,0.00027397,2]
[377427403,1754409043503,-460.0,0.00027397,2]
[377427405,1754409043513,-711.15,0.00027397,2]
[377427407,1754409043522,-151.0,0.00027397,7]
[377427409,1754409043531,-460.0,0.00027397,2]
[377427411,1754409043541,-464.92221098,0.00027397,2]
[377427413,1754409043550,-1056.26,0.00027397,2]
[377427415,1754409043560,-460.0,0.00027397,2]
[377427417,1754409043571,-460.0,0.00027397,2]
[377427419,1754409043580,-464.62230391,0.00027397,2]
[377427421,1754409043590,-463.0136333,0.00027397,2]
[377427423,1754409043599,-460.0,0.00027397,2]
[377427425,1754409043608,-460.0,0.00027397,2]
[377427427,1754409043617,-460.0,0.00027397,2]
[377427429,1754409043626,-460.0,0.00027397,2]
[377427431,1754409043636,-460.0,0.00027397,2]
[377427433,1754409043645,-1053.24,0.00027397,2]
[377427435,1754409043654,-460.0,0.00027397,2]
[377427437,1754409043663,-460.0,0.00027397,2]
[377427439,1754409043671,-529.65650545,0.00027397,2]
[377427441,1754409043680,-460.0,0.00027397,2]
[377427443,1754409043689,-642.56,0.00027397,2]
[377427445,1754409043699,-460.0,0.00027397,2]
[377427447,1754409043707,-460.0,0.00027397,2]
[377427449,1754409043717,-461.19652707,0.00027397,2]
[377427451,1754409043726,-468.11,0.00027397,2]
[377427453,1754409043735,-460.0,0.00027397,2]
[377427455,1754409043745,-460.0,0.00027397,2]
[377427457,1754409043755,-709.8,0.00027397,2]
[377427459,1754409043764,-463.9492212,0.00027397,2]
[377427461,1754409043773,-460.0,0.00027397,2]
[377427463,1754409043782,-460.0,0.00027397,2]
[377427464,1754409043792,-462.96612795,0.00027397,2]
[377427466,1754409043801,-336.90816368,0.00027397,2]
[377427468,1754409043811,-460.0,0.00027397,2]
[377427470,1754409043821,-463.9517304,0.00027397,2]
[377427472,1754409043830,-979.51,0.00027397,2]
[377427474,1754409043839,-460.0,0.00027397,2]
[377427476,1754409043849,-460.0,0.00027397,2]
[377427478,1754409043859,-460.0,0.00027397,2]
[377427479,1754409043868,-514.83,0.00027397,2]
[377427480,1754409043878,-463.15116488,0.00027397,2]
[377427481,1754409043887,-460.0,0.00027397,2]
[377427482,1754409043896,-460.0,0.00027397,2]
[377427483,1754409043906,-460.0,0.00027397,2]
[377427484,1754409043915,-1191.82,0.00027397,2]
[377427485,1754409043924,-463.16917677,0.00027397,2]
[377427486,1754409043933,-194.77511723,0.00027397,2]
[377427487,1754409043942,-1935.53,0.00027397,2]
[377427488,1754409043952,-460.0,0.00027397,2]
[377427489,1754409043961,-460.0,0.00027397,2]
[377427490,1754409044045,-520.92841865,0.00027397,2]
[377427491,1754409044055,-490.45,0.00027397,2]
[377427492,1754409044066,-473.88791582,0.00027397,2]
[377427493,1754409044075,-1284.43,0.00027397,2]
[377427495,1754409044084,-151.0,0.00027397,7]
[377427496,1754409044094,-460.0,0.00027397,2]
[377427498,1754409044103,-546.3,0.00027397,2]
[377427500,1754409044113,-466.65395236,0.00027397,2]
[377427502,1754409044122,-460.0,0.00027397,2]
[377427504,1754409044131,-460.0,0.00027397,2]
[377427506,1754409044141,-676.59,0.00027397,2]
[377427508,1754409044150,-460.0,0.00027397,2]
[377427510,1754409044159,-460.0,0.00027397,2]
[377427511,1754409044168,-460.0,0.00027397,2]
[377427513,1754409044178,-460.0,0.00027397,2]
[377427516,1754409044187,-541.21,0.00027397,2]
[377427518,1754409044197,-740.58,0.00027397,2]
[377427520,1754409044206,-152.846565,0.00027397,7]
[377427521,1754409044215,-460.0,0.00027397,2]
[377427523,1754409044224,-460.0,0.00027397,2]
[377427525,1754409044234,-460.0,0.00027397,2]
[377427527,1754409044243,-460.0,0.00027397,2]
[377427529,1754409044252,-460.0,0.00027397,2]
[377427531,1754409044261,-460.0,0.00027397,2]
[377427533,1754409044270,-473.45430432,0.00027397,2]
[377427535,1754409044279,-460.0,0.00027397,2]
[377427537,1754409044288,-460.0,0.00027397,2]
[377427539,1754409044297,-500.0,0.00027397,2]
[377427541,1754409044306,-460.0,0.00027397,2]
[377427543,1754409044318,-380.05679387,0.00027397,2]
[377427545,1754409044327,-556.84,0.00027397,2]
[377427547,1754409044338,-462.23621692,0.00027397,2]
[377427549,1754409044353,-460.0,0.00027397,2]
[377427551,1754409044363,-460.0,0.00027397,2]
[377427553,1754409044372,-460.0,0.00027397,2]
[377427555,1754409044383,-460.0,0.00027397,2]
[377427557,1754409044393,-461.44209348,0.00027397,2]
[377427559,1754409044403,-460.0,0.00027397,2]
[377427561,1754409044412,-460.0,0.00027397,2]
[377427563,1754409044425,-4337.79,0.00027397,2]
[377427565,1754409044435,-460.0,0.00027397,2]
[377427567,1754409044445,-460.0,0.00027397,2]
[377427569,1754409044455,-460.0,0.00027397,2]
[377427571,1754409044465,-460.0,0.00027397,2]
[377427573,1754409044474,-460.0,0.00027397,2]
[377427575,1754409044483,-460.0,0.00027397,2]
[377427577,1754409044492,-461.52280735,0.00027397,2]
[377427579,1754409044502,-3554.62512837,0.00027401,2]
[377427581,1754409044511,-500.0,0.00027519,2]
[377427583,1754409044521,-501.53436114,0.00027521,5]
[377427586,1754409044530,-500.0,0.00027521,5]
[377427587,1754409044540,-500.0,0.00027521,5]
[377427589,1754409044550,-1000.0,0.00027521,5]
[377427591,1754409044559,-3554.62512837,0.00027574,2]
[377427593,1754409044572,-151.0,0.000276,11]
[377427596,1754409044582,-1975.15761583,0.00027605,2]
[377427598,1754409044591,-160.0,0.00027618,2]
[377427600,1754409044601,-160.0,0.00027618,2]
[377427602,1754409044610,-160.0,0.00027618,2]
[377427604,1754409044620,-1975.15761583,0.0002762,2]
[377427606,1754409044629,-500.0,0.00027624,2]
[377427607,1754409044640,-12655.02535889,0.00027625,2]
[377427609,1754409044649,-151.0,0.00027625,7]
[377427611,1754409044659,-151.0,0.00027625,7]
[377427614,1754409044669,-151.0,0.00027625,7]
[377427616,1754409044678,-151.0,0.00027625,7]
[377427618,1754409044687,-151.0,0.0002763,7]
[377427620,1754409044696,-151.0,0.0002763,7]
[377427622,1754409044706,-151.0,0.0002763,7]
[377427624,1754409044715,-151.0,0.0002763,7]
[377427626,1754409044726,-151.0,0.0002763,7]
[377427628,1754409044735,-151.0,0.0002763,7]
[377427630,1754409044745,-151.0,0.0002763,7]
[377427632,1754409044754,-3950.31523166,0.0002763,2]
[377427634,1754409044764,-1248.88,0.00027637,2]
[377427636,1754409044773,-500.0,0.00027639,2]
[377427638,1754409044782,-1248.88,0.00027639,2]
[377427640,1754409044791,-1248.88,0.00027639,2]
[377427642,1754409044801,-151.0,0.00027639,7]
[377427644,1754409044811,-284.13241518,0.0002764,2]
[377427646,1754409044821,-460.0,0.0002764,2]
[377427648,1754409044831,-1212.8,0.0002764,2]
[377427650,1754409044840,-472.47,0.0002764,2]
[377427651,1754409044851,-460.0,0.0002764,2]
[377427654,1754409044861,-460.0,0.0002764,2]
[377427656,1754409044871,-151.0,0.0002764,7]
[377427658,1754409044881,-151.0,0.0002764,7]
[377427660,1754409044890,-151.0,0.0002764,7]
[377427662,1754409044899,-460.0,0.0002764,2]
[377427663,1754409044908,-151.0,0.0002764,7]
[377427665,1754409044917,-460.0,0.0002764,2]
[377427668,1754409044927,-460.0,0.0002764,2]
[377427669,1754409044936,-460.0,0.0002764,2]
[377427671,1754409044946,-5925.47284749,0.00027661,2]
[377427673,1754409044956,-7900.63046332,0.00027664,2]
[377427676,1754409044965,-500.0,0.0002767,2]
[377427677,1754409044975,-500.0,0.0002767,2]
[377427680,1754409044988,-500.0,0.0002767,2]
[377427681,1754409044998,-500.0,0.0002767,2]
[377427683,1754409045007,-1248.88,0.0002767,2]
[377427685,1754409045017,-1248.88,0.0002767,2]
[377427687,1754409045026,-1248.88,0.0002767,2]
[377427690,1754409045035,-1248.88,0.0002767,2]
[377427691,1754409045044,-1248.88,0.0002767,2]
[377427693,1754409045055,-1248.96485562,0.0002767,2]
[377427695,1754409045066,-500.0,0.00027671,7]
[377427697,1754409045076,-460.0,0.00027671,2]
[377427699,1754409045085,-460.0,0.00027671,2]
[377427701,1754409045094,-460.0,0.00027671,2]
[377427704,1754409045105,-460.0,0.00027671,2]
[377427706,1754409045115,-564.35631308,0.00027671,2]
[377427708,1754409045125,-460.0,0.00027671,2]
[377427710,1754409045134,-460.0,0.00027671,2]
[377427712,1754409045144,-460.0,0.00027671,2]
[377427714,1754409045154,-460.0,0.00027671,2]
[377427716,1754409045163,-460.0,0.00027671,2]
[377427718,1754409045172,-460.0,0.00027671,2]
[377427720,1754409045181,-460.0,0.00027671,2]
[377427722,1754409045190,-466.39367189,0.00027671,2]
[377427723,1754409045201,-460.0,0.00027671,2]
[377427725,1754409045211,-460.0,0.00027671,2]
[377427727,1754409045221,-460.0,0.00027671,2]
[377427729,1754409045230,-460.0,0.00027671,2]
[377427731,1754409045239,-466.77568601,0.00027671,2]
[377427733,1754409045248,-460.0,0.00027671,2]
[377427735,1754409045257,-460.0,0.00027671,2]
[377427738,1754409045268,-388.24448206,0.00027671,2]
[377427739,1754409045278,-462.45603283,0.00027671,2]
[377427741,1754409045288,-460.0,0.00027671,2]
[377427744,1754409045297,-460.0,0.00027671,2]
[377427746,1754409045306,-460.0,0.00027671,2]
[377427747,1754409045316,-845.72,0.00027671,2]
[377427749,1754409045326,-460.0,0.00027671,2]
[377427751,1754409045335,-460.0,0.00027671,2]
[377427753,1754409045346,-619.42,0.00027671,2]
[377427776,1754409045564,-591.53504124,0.00027671,2]
[377427778,1754409045574,-3013.422074,0.00027671,2]
[377427781,1754409045584,-460.0,0.00027671,2]
[377427782,1754409045593,-460.0,0.00027671,2]
[377427785,1754409045603,-460.0,0.00027671,2]
[377427786,1754409045612,-462.27590777,0.00027671,2]
[377427789,1754409045622,-466.19483135,0.00027671,2]
[377427791,1754409045632,-464.39072499,0.00027671,2]
[377427793,1754409045641,-460.0,0.00027671,2]
[377427798,1754409045724,-460.0,0.00027671,2]
[377427799,1754409045733,-204.69446943,0.00027671,2]
[377427801,1754409045745,-460.0,0.00027671,2]
[377427803,1754409045754,-460.0,0.00027671,2]
[377427805,1754409045764,-799.22,0.00027671,2]
[377427807,1754409045774,-506.26,0.00027671,2]
[377427808,1754409045784,-460.0,0.00027671,2]